Workbook

Sheet 113年
A1: 113年1月1日至12月31日由女性企業承包決標案件統計表
O2: 表20
A3: 採購性質 | B3: 全部決標 件數 | C3: 全部決標 金額 (億元) | D3: 女性企業 | H3: 女性中小企業 | L3: 符合一定條件之女性中小企業
D4: 件數 | E4: 件數比率 | F4: 金額 (億元) | G4: 金額比率 | H4: 件數 | I4: 件數比率 | J4: 金額 (億元) | K4: 金額比率 | L4: 件數 | M4: 件數比率 | N4: 金額 (億元) | O4: 金額比率
A5: 工程 | B5: 39,866 | C5: 8,261.12 | D5: 12,102 | E5: =D5/B5 -> 30.36% | F5: 1,528.17 | G5: =F5/C5 -> 18.50% | H5: 11,934 | I5: =H5/B5 -> 29.94% | J5: 1,181.21 | K5: =J5/C5 -> 14.30% | L5: 9,752 | M5: =L5/B5 -> 24.46% | N5: 790.27 | O5: =N5/C5 -> 9.57%
A6: 財物 | B6: 54,408 | C6: 4,252.74 | D6: 15,282 | E6: =D6/B6 -> 28.09% | F6: 667.69 | G6: =F6/C6 -> 15.70% | H6: 14,928 | I6: =H6/B6 -> 27.44% | J6: 588.12 | K6: =J6/C6 -> 13.83% | L6: 12,018 | M6: =L6/B6 -> 22.09% | N6: 416.00 | O6: =N6/C6 -> 9.78%
A7: 勞務 | B7: 68,449 | C7: 3,806.20 | D7: 19,308 | E7: =D7/B7 -> 28.21% | F7: 736.28 | G7: =F7/C7 -> 19.34% | H7: 18,257 | I7: =H7/B7 -> 26.67% | J7: 618.79 | K7: =J7/C7 -> 16.26% | L7: 15,740 | M7: =L7/B7 -> 23.00% | N7: 482.89 | O7: =N7/C7 -> 12.69%
A8: 合計 | B8: =SUM(B5:B7) -> 162,723 | C8: =SUM(C5:C7) -> 16,320.06 | D8: =SUM(D5:D7) -> 46,692 | E8: =D8/B8 -> 28.69% | F8: =SUM(F5:F7) -> 2,932.15 | G8: =F8/C8 -> 17.97% | H8: =SUM(H5:H7) -> 45,119 | I8: =H8/B8 -> 27.73% | J8: =SUM(J5:J7) -> 2,388.12 | K8: =J8/C8 -> 14.63% | L8: =SUM(L5:L7) -> 37,510 | M8: =L8/B8 -> 23.05% | N8: =SUM(N5:N7) -> 1,689.15 | O8: =N8/C8 -> 10.35%
A9: 資料來源：企劃處
A10: 備註： 1.性別資料使用： (1)本統計所稱「女性企業」，指依商業登記法及公司法登記之企業，其法定代表人為女性之得標廠商。 (2)本統計所稱「女性中小企業」，指依商業登記法及公司法登記之企業，其指法定代表人為女性且決標公告之『是否為中小企業』選取『是』之得標廠商。 (3)本統計所稱「符合一定條件之女性中小企業」 原名稱為「優先取得採購業務機會之女性中小企業」，依工程會104年l0月27日「104年推動性別平等業務輔導考核實地考核綜合座談會」討論情形，因現行法令上並未對該類女性中小企業採取優惠或保護措施，爰研議修正該用詞，並經工程會104年12月14日簽奉核定修正用詞。 (4)「符合一定條件之女性中小企業」篩選條件，依經濟部中小企業處102年3月22日「研議辦理女性企業參與政府採購性別統計事宜」會議結論，指中小企業之法定代表人為女性，且該企業符合下列要件之一：①女性持有股權或出資額須達二分之一以上。②依法登記之負責人及關係人二分之一以上為女性。上述2項篩選條件排除股份有限公司依法登記之法人及其持有股權(即法人股東無性別，不納入計算)。 (5)有關決標件數及決標金額，係依商業登記法及公司法登記之企業得標者。 (6)採購案件如為複數決標，若有多個女性企業得標，為與全年度總採購案件比較，以該採購案為準統計1次。 2.應用深化： (1)統計期間，女性企業得標家數計11,532家(A)，女性中小企業得標家數計11,355(B)，B/A之比率為98.47%，顯示女性企業大多以中小企業為主；又與112年度相較，女性企業增加41家，上升0.36%；女性中小企業家數增加34家，上升0.3%。符合一定條件之女性中小企業家數計9,635家(C)，C/A之比率為83.56%，與112年相較，增加5家，上升0.05%。 (2)就公司登記及商業登記之企業，其得標之全部件數162,723件，全部決標金額約16,320.06億元，其中，女性企業得標件數46,692件(約占全部件數之28.69%)，得標金額約2,932.15億元(約占全部決標金額之17.97%)；女性中小企業得標件數45,119件(約占全部總件數27.73%)，得標金額2,388.12億元(約占全部決標總金額14.63%)；符合一定條件之女性小企業之得標件數37,510件(占總決標件數之23.05%)；得標金額約1,689.15億元(占總決標金額之10.35%)。 (3)各類女性企業承包政府採購之件數及金額之變動情形：女性企業、女性中小企業及符合一定條件之女性中小企業承包件數比率，113年較112年分別增加4.76%、4.74%及4.99%；在承包金額方面，女性企業、女性中小企業及符合一定條件之女性中小企業承包金額比率，113年較112年則分別增加12.4%、8.03%及7.59%，女性企業承包政府採購件數及金額均微幅上升。 3.未進行國際性別統計比較原因說明：各國對於女性企業、女性中小企業等之定義可能不同，且尚難取得資料，爰無法與國際進行性別統計比較。

Sheet 113年附表(縣市別)
A1: 113年1月1日至12月31日由女性企業承包決標案件統計表(縣市別)
A2: 表20之附表
A3: 廠商地址(縣市) | B3: 女性企業 | F3: 女性中小企業 | J3: 符合一定條件之女性中小企業
B4: 家數 | C4: 家數比率 | D4: 金額 (億元) | E4: 金額比率 | F4: 家數 | G4: 家數比率 | H4: 金額 (億元) | I4: 金額比率 | J4: 家數 | K4: 家數比率 | L4: 金額 (億元) | M4: 金額比率
A5: 臺北市 | B5: =2066+1 -> 2,067 | C5: =B5/$B$27 -> 17.63% | D5: =716.9338642+0.00414 -> 716.94 | E5: =D5/$D$27 -> 24.45% | F5: =2026+1 -> 2,027 | G5: =F5/$F$27 -> 17.57% | H5: =424.17327158+0.00414 -> 424.18 | I5: =H5/$H$27 -> 17.76% | J5: =1667+1 -> 1,668 | K5: =J5/$J$27 -> 17.04% | L5: =295.46159962+0.00414 -> 295.47 | M5: =L5/$L$27 -> 17.49%
A6: 臺中市 | B6: 1,490 | C6: 12.71% | D6: 353.56 | E6: 12.06% | F6: 1,472 | G6: 12.76% | H6: 337.72 | I6: 14.14% | J6: 1,210 | K6: 12.36% | L6: 239.42 | M6: 14.17%
A7: 基隆市 | B7: 158 | C7: 1.35% | D7: 19.17 | E7: 0.65% | F7: 156 | G7: 1.35% | H7: 19.09 | I7: 0.80% | J7: 134 | K7: 1.37% | L7: 13.50 | M7: 0.80%
A8: 臺南市 | B8: 789 | C8: 6.73% | D8: 127.93 | E8: 4.36% | F8: 780 | G8: 6.76% | H8: 126.41 | I8: 5.29% | J8: 675 | K8: 6.90% | L8: 91.78 | M8: 5.43%
A9: 高雄市 | B9: 1,554 | C9: 13.26% | D9: 354.80 | E9: 12.10% | F9: 1,541 | G9: 13.35% | H9: 349.59 | I9: 14.64% | J9: 1,335 | K9: 13.64% | L9: 267.17 | M9: 15.82%
A10: 新北市 | B10: 1,836 | C10: 15.66% | D10: 450.53 | E10: 15.37% | F10: 1,806 | G10: 15.65% | H10: 398.11 | I10: 16.67% | J10: 1,494 | K10: 15.27% | L10: 252.68 | M10: 14.96%
A11: 宜蘭縣 | B11: 241 | C11: 2.06% | D11: 32.65 | E11: 1.11% | F11: 237 | G11: 2.05% | H11: 32.57 | I11: 1.36% | J11: 206 | K11: 2.10% | L11: 23.63 | M11: 1.40%
A12: 桃園市 | B12: 773 | C12: 6.59% | D12: 135.05 | E12: 4.61% | F12: 760 | G12: 6.59% | H12: 131.89 | I12: 5.52% | J12: 639 | K12: 6.53% | L12: 103.19 | M12: 6.11%
A13: 嘉義市 | B13: 189 | C13: 1.61% | D13: 37.55 | E13: 1.28% | F13: 188 | G13: 1.63% | H13: 29.80 | I13: 1.25% | J13: 161 | K13: 1.65% | L13: 20.67 | M13: 1.22%
A14: 新竹縣 | B14: 172 | C14: 1.47% | D14: 25.38 | E14: 0.87% | F14: 171 | G14: 1.48% | H14: 25.18 | I14: 1.05% | J14: 149 | K14: 1.52% | L14: 20.04 | M14: 1.19%
A15: 苗栗縣 | B15: 223 | C15: 1.90% | D15: 32.53 | E15: 1.11% | F15: 222 | G15: 1.92% | H15: 32.23 | I15: 1.35% | J15: 192 | K15: 1.96% | L15: 22.17 | M15: 1.31%
A16: 南投縣 | B16: 240 | C16: 2.05% | D16: 51.96 | E16: 1.77% | F16: 237 | G16: 2.05% | H16: 51.53 | I16: 2.16% | J16: 214 | K16: 2.19% | L16: 38.40 | M16: 2.27%
A17: 彰化縣 | B17: 337 | C17: 2.87% | D17: 54.70 | E17: 1.87% | F17: 332 | G17: 2.88% | H17: 54.34 | I17: 2.28% | J17: 266 | K17: 2.72% | L17: 40.35 | M17: 2.39%
A18: 新竹市 | B18: 178 | C18: 1.52% | D18: 71.74 | E18: 2.45% | F18: 171 | G18: 1.48% | H18: 70.86 | I18: 2.97% | J18: 146 | K18: 1.49% | L18: 21.42 | M18: 1.27%
A19: 雲林縣 | B19: 242 | C19: 2.06% | D19: 71.13 | E19: 2.43% | F19: 239 | G19: 2.07% | H19: 70.91 | I19: 2.97% | J19: 205 | K19: 2.09% | L19: 54.79 | M19: 3.24%
A20: 嘉義縣 | B20: 199 | C20: 1.70% | D20: 38.46 | E20: 1.31% | F20: 187 | G20: 1.62% | H20: 37.78 | I20: 1.58% | J20: 160 | K20: 1.63% | L20: 29.33 | M20: 1.74%
A21: 屏東縣 | B21: 338 | C21: 2.88% | D21: 212.75 | E21: 7.26% | F21: 330 | G21: 2.86% | H21: 52.14 | I21: 2.18% | J21: 305 | K21: 3.12% | L21: 45.12 | M21: 2.67%
A22: 花蓮縣 | B22: 300 | C22: 2.56% | D22: 60.38 | E22: 2.06% | F22: 293 | G22: 2.54% | H22: 59.20 | I22: 2.48% | J22: 271 | K22: 2.77% | L22: 38.30 | M22: 2.27%
A23: 臺東縣 | B23: 159 | C23: 1.36% | D23: 49.95 | E23: 1.70% | F23: 155 | G23: 1.34% | H23: 49.80 | I23: 2.09% | J23: 144 | K23: 1.47% | L23: 41.35 | M23: 2.45%
A24: 金門縣 | B24: 94 | C24: 0.80% | D24: 10.82 | E24: 0.37% | F24: 94 | G24: 0.81% | H24: 10.78 | I24: 0.45% | J24: 87 | K24: 0.89% | L24: 10.09 | M24: 0.60%
A25: 澎湖縣 | B25: 106 | C25: 0.90% | D25: 19.91 | E25: 0.68% | F25: 104 | G25: 0.90% | H25: 19.80 | I25: 0.83% | J25: 91 | K25: 0.93% | L25: 16.93 | M25: 1.00%
A26: 連江縣 | B26: 38 | C26: 0.32% | D26: 4.23 | E26: 0.14% | F26: 37 | G26: 0.32% | H26: 4.16 | I26: 0.17% | J26: 35 | K26: 0.36% | L26: 3.30 | M26: 0.20%
A27: 合計 | B27: =SUM(B5:B26) -> 11,723 | C27: 100.00% | D27: =SUM(D5:D26) -> 2,932.11 | E27: 100.00% | F27: =SUM(F5:F26) -> 11,539 | G27: 100.00% | H27: =SUM(H5:H26) -> 2,388.08 | I27: 100.00% | J27: =SUM(J5:J26) -> 9,787 | K27: 100.00% | L27: =SUM(L5:L26) -> 1,689.11 | M27: 100.00%
A28: 備註： 1.性別資料使用： (1)本統計所稱「女性企業」，指依商業登記法及公司法登記之企業，其法定代表人為女性之得標廠商。 (2)本統計所稱「女性中小企業」，指依商業登記法及公司法登記之企業，其指法定代表人為女性且決標公告之『是否為中小企業』選取『是』之得標廠商。 (3)本統計所稱「符合一定條件之女性中小企業」 原名稱為「優先取得採購業務機會之女性中小企業」，依工程會104年l0月27日「104年推動性別平等業務輔導考核實地考核綜合座談會」討論情形，因現行法令上並未對該類女性中小企業採取優惠或保護措施，爰研議修正該用詞，並經工程會104年12月14日簽奉核定修正用詞。 (4)「符合一定條件之女性中小企業」篩選條件，依經濟部中小企業處102年3月22日「研議辦理女性企業參與政府採購性別統計事宜」會議結論，指中小企業之法定代表人為女性，且該企業符合下列要件之一：一、女性持有股權或出資額須達二分之一以上。二、依法登記之負責人及關係人二分之一以上為女性。上述兩項篩選條件排除股份有限公司依法登記之法人及其持有股權(即法人股東無性別，不納入計算)。 (5)有關決標件數及決標金額，係依商業登記法及公司法登記之企業得標者。 2.同廠商代碼相同廠商地址列1筆計算；同廠商代碼不同廠商地址(縣市)列多筆計算；複數決標依得標廠商數計算。 3.有關決標件數及決標金額，係依商業登記法及公司法登記之企業得標者。 4.自113年度起新增不利處境者「縣市」性別統計指標。

Sheet 112年
A1: 112年1月1日至12月31日由女性企業承包決標案件統計表
A3: 採購性質 | B3: 全部決標 件數 | C3: 全部決標 金額 (億元) | D3: 女性企業 | H3: 女性中小企業 | L3: 符合一定條件之女性中小企業
D4: 件數 | E4: 件數比率 | F4: 金額 (億元) | G4: 金額比率 | H4: 件數 | I4: 件數比率 | J4: 金額 (億元) | K4: 金額比率 | L4: 件數 | M4: 件數比率 | N4: 金額 (億元) | O4: 金額比率
A5: 工程 | B5: 36,940 | C5: 8,269.66 | D5: 11,222 | E5: =D5/B5 -> 30.38% | F5: 1,205.30 | G5: =F5/C5 -> 14.58% | H5: 11,036 | I5: =H5/B5 -> 29.88% | J5: 1,040.28 | K5: =J5/C5 -> 12.58% | L5: 9,025 | M5: =L5/B5 -> 24.43% | N5: 686.86 | O5: =N5/C5 -> 8.31%
A6: 財物 | B6: 53,953 | C6: 6,173.31 | D6: 15,255 | E6: =D6/B6 -> 28.27% | F6: 738.83 | G6: =F6/C6 -> 11.97% | H6: 14,839 | I6: =H6/B6 -> 27.50% | J6: 604.60 | K6: =J6/C6 -> 9.79% | L6: 11,974 | M6: =L6/B6 -> 22.19% | N6: 444.31 | O6: =N6/C6 -> 7.20%
A7: 勞務 | B7: 63,495 | C7: 3,604.06 | D7: 17,993 | E7: =D7/B7 -> 28.34% | F7: 624.30 | G7: =F7/C7 -> 17.32% | H7: 17,105 | I7: =H7/B7 -> 26.94% | J7: 551.57 | K7: =J7/C7 -> 15.30% | L7: 14,638 | M7: =L7/B7 -> 23.05% | N7: 429.75 | O7: =N7/C7 -> 11.92%
A8: 合計 | B8: =SUM(B5:B7) -> 154,388 | C8: =SUM(C5:C7) -> 18,047.03 | D8: =SUM(D5:D7) -> 44,470 | E8: =D8/B8 -> 28.80% | F8: =SUM(F5:F7) -> 2,568.43 | G8: =F8/C8 -> 14.23% | H8: =SUM(H5:H7) -> 42,980 | I8: =H8/B8 -> 27.84% | J8: =SUM(J5:J7) -> 2,196.44 | K8: =J8/C8 -> 12.17% | L8: =SUM(L5:L7) -> 35,637 | M8: =L8/B8 -> 23.08% | N8: =SUM(N5:N7) -> 1,560.93 | O8: =N8/C8 -> 8.65%
A9: 資料來源：企劃處
A10: 備註： 1.性別資料使用： (1)本統計所稱「女性企業」，指依商業登記法及公司法登記之企業，其法定代表人為女性之得標廠商。 (2)本統計所稱「女性中小企業」，指依商業登記法及公司法登記之企業，其指法定代表人為女性且決標公告之『是否為中小企業』選取『是』之得標廠商。 (3)本統計所稱「符合一定條件之女性中小企業」 原名稱為「優先取得採購業務機會之女性中小企業」，依工程會104年l0月27日「104年推動性別平等業務輔導考核實地考核綜合座談會」討論情形，因現行法令上並未對該類女性中小企業採取優惠或保護措施，爰研議修正該用詞，並經工程會104年12月14日簽奉核定修正用詞。 (4)「符合一定條件之女性中小企業」篩選條件，依經濟部中小企業處102年3月22日「研議辦理女性企業參與政府採購性別統計事宜」會議結論，指中小企業之法定代表人為女性，且該企業符合下列要件之一：一、女性持有股權或出資額須達二分之一以上。二、依法登記之負責人及關係人二分之一以上為女性。上述兩項篩選條件排除股份有限公司依法登記之法人及其持有股權(即法人股東無性別，不納入計算)。 (5)有關決標件數及決標金額，係依商業登記法及公司法登記之企業得標者。 2.應用深化： (1)統計期間，女性企業得標家數計11,491家(A)，女性中小企業得標家數計11,321(B)，B/A之比率為98.52%，顯示女性企業大多以中小企業為主；又與111年度相較，女性企業減少587家，下降4.86%；女性中小企業家數減少554家，下降4.67%。符合一定條件之女性中小企業家數計9,630家(C)，C/A之比率為83.8%，與111年相較，減少172家，下降1.75%。 (2)就公司登記及商業登記之企業，其得標之全部件數154,388件，全部決標金額約18,047.03億元，其中，女性企業得標件數44,470件(約占全部件數之28.8%)，得標金額約2,568.43億元(約占全部決標金額之14.23%)；女性中小企業得標件數42,980件(約占全部總件數27.84%)，得標金額2,196.44億元(約占全部決標總金額12.17%)；符合一定條件之女性小企業之得標件數35,637件(占總決標件數之23.08%)；得標金額約1,560.93億元(占總決標金額之8.65%)。 (3)各類女性企業承包政府採購之件數及金額之變動情形：女性企業、女性中小企業及符合一定條件之女性中小企業承包件數比率，112年較111年分別減少10.06%、9.69%及6.76%；在承包金額方面，女性企業、女性中小企業及符合一定條件之女性中小企業承包金額比率，112年較111年則分別減少11.35%、7.87%及5.92%，惟112年總決標件數亦較111年下降約9.74%，女性企業承包政府採購件數及金額整體趨勢持平。 3.未進行國際性別統計比較原因說明：各國對於女性企業、女性中小企業等之定義可能不同，且尚難取得資料，爰無法與國際進行性別統計比較。

Sheet 111年
A1: 111年1月1日至12月31日由女性企業承包決標案件統計表
A3: 採購性質 | B3: 全部決標 件數 | C3: 全部決標 金額 (億元) | D3: 女性企業 | H3: 女性中小企業 | L3: 符合一定條件之女性中小企業
D4: 件數 | E4: 件數比率 | F4: 金額 (億元) | G4: 金額比率 | H4: 件數 | I4: 件數比率 | J4: 金額 (億元) | K4: 金額比率 | L4: 件數 | M4: 件數比率 | N4: 金額 (億元) | O4: 金額比率
A5: 工程 | B5: 41,167 | C5: 7,817.78 | D5: 12,232 | E5: =D5/B5 -> 29.71% | F5: 1,333.17 | G5: =F5/C5 -> 17.05% | H5: 12,013 | I5: =H5/B5 -> 29.18% | J5: 1,138.90 | K5: =J5/C5 -> 14.57% | L5: 9,784 | M5: =L5/B5 -> 23.77% | N5: 744.55 | O5: =N5/C5 -> 9.52%
A6: 財物 | B6: 64,157 | C6: 9,411.72 | D6: 18,679 | E6: =D6/B6 -> 29.11% | F6: 941.57 | G6: =F6/C6 -> 10.00% | H6: 17,998 | I6: =H6/B6 -> 28.05% | J6: 733.19 | K6: =J6/C6 -> 7.79% | L6: 13,938 | M6: =L6/B6 -> 21.72% | N6: 527.13 | O6: =N6/C6 -> 5.60%
A7: 勞務 | B7: 65,735 | C7: 3,581.36 | D7: 18,535 | E7: =D7/B7 -> 28.20% | F7: 622.66 | G7: =F7/C7 -> 17.39% | H7: 17,579 | I7: =H7/B7 -> 26.74% | J7: 512.03 | K7: =J7/C7 -> 14.30% | L7: 14,497 | M7: =L7/B7 -> 22.05% | N7: 387.52 | O7: =N7/C7 -> 10.82%
A8: 合計 | B8: =SUM(B5:B7) -> 171,059 | C8: =SUM(C5:C7) -> 20,810.87 | D8: =SUM(D5:D7) -> 49,446 | E8: =D8/B8 -> 28.91% | F8: =SUM(F5:F7) -> 2,897.39 | G8: =F8/C8 -> 13.92% | H8: =SUM(H5:H7) -> 47,590 | I8: =H8/B8 -> 27.82% | J8: =SUM(J5:J7) -> 2,384.11 | K8: =J8/C8 -> 11.46% | L8: =SUM(L5:L7) -> 38,219 | M8: =L8/B8 -> 22.34% | N8: =SUM(N5:N7) -> 1,659.20 | O8: =N8/C8 -> 7.97%
A9: 資料來源：企劃處
A10: 備註： 1.性別資料使用： (1)本統計所稱「女性企業」，指依商業登記法及公司法登記之企業，其法定代表人為女性之得標廠商。 (2)本統計所稱「女性中小企業」，指依商業登記法及公司法登記之企業，其指法定代表人為女性且決標公告之『是否為中小企業』選取『是』之得標廠商。 (3)本統計所稱「符合一定條件之女性中小企業」 原名稱為「優先取得採購業務機會之女性中小企業」，依工程會104年l0月27日「104年推動性別平等業務輔導考核實地考核綜合座談會」討論情形，因現行法令上並未對該類女性中小企業採取優惠或保護措施，爰研議修正該用詞，並經工程會104年12月14日簽奉核定修正用詞。 (4)「符合一定條件之女性中小企業」篩選條件，依經濟部中小企業處102年3月22日「研議辦理女性企業參與政府採購性別統計事宜」會議結論，指中小企業之法定代表人為女性，且該企業符合下列要件之一：一、女性持有股權或出資額須達二分之一以上。二、依法登記之負責人及關係人二分之一以上為女性。上述兩項篩選條件排除股份有限公司依法登記之法人及其持有股權(即法人股東無性別，不納入計算)。 (5)有關決標件數及決標金額，係依商業登記法及公司法登記之企業得標者。 2.應用深化： (1)統計期間，統計期間，女性企業得標家數計12,078家(A)，女性中小企業得標家數計11,875(B)，B/A之比率為98.32%，顯示女性企業大多以中小企業為主；又與110年度相較，女性企業增加327家，上升2.78%；女性中小企業家數增加329家，增加2.85%。符合一定條件之女性中小企業家數計9,802家(C)，C/A之比率為81.16%，與110年相較，增加529家，上升5.7%。 (2)就公司登記及商業登記之企業，其得標之全部件數171,059件，全部決標金額約20,810.87億元，其中，女性企業得標件數49,446件(約占全部件數之28.91%)，得標金額約2,897.39億元(約占全部決標金額之13.92%)；女性中小企業得標件數47,590件(約占全部總件數27.82%)，得標金額2,384.11億元(約占全部決標總金額11.46%)；符合一定條件之女性小企業之得標件數38,219件(占總決標件數之22.34%)；得標金額約1,659.2億元(占總決標金額之7.97%)。 (3)各類女性企業承包政府採購之件數及金額之變動情形：女性企業、女性中小企業及符合一定條件之女性中小企業承包件數比率，111年較110年分別減少0.83%、0.67%及增加0.31%；在承包金額方面，女性企業、女性中小企業及符合一定條件之女性中小企業承包金額比率，111年較110年則分別減少12.26%、6.23%及2.83%，女性企業、女性中小企業及符合一定條件之女性中小企業家數均上升，多數承包件數及金額比率均下降，但符合一定條件之女性中小企業承包件數反而上升，似符合一定條件之女性中小企業較易得標。 3.未進行國際性別統計比較原因說明：各國對於女性企業、女性中小企業等之定義可能不同，且尚難取得資料，爰無法與國際進行性別統計比較。
D15: a | E15: b | F15: c
C16: 110 | D16: 11751 | E16: 11546 | F16: 9273
C17: 111 | D17: 12078 | E17: 11875 | F17: 9802
D18: =D17-D16 -> 327 | E18: =E17-E16 -> 329 | F18: =F17-F16 -> 529
D19: =D18/D16 -> 2.78% | E19: =E18/E16 -> 2.85% | F19: =F18/F16 -> 5.70%
E20: b/a | F20: c/a
E21: =E16/D16 -> 98.26% | F21: =F16/D16 -> 78.91%
E22: =E17/D17 -> 98.32% | F22: =F17/D17 -> 81.16%
F27: 女性企業家數 | G27: 12,078
F28: 女性中小企業家數 | G28: 11,875 | H28: =G28/G27 -> 0.9831925816
F29: 優先取得採購業務機會之女性中小企業 | G29: 9,802 | H29: =G29/G27 -> 0.811558205

Sheet 110年
A1: 110年1月1日至12月31日由女性企業承包決標案件統計表
A3: 採購性質 | B3: 全部決標 件數 | C3: 全部決標 金額 (億元) | D3: 女性企業 | H3: 女性中小企業 | L3: 符合一定條件之女性中小企業
D4: 件數 | E4: 件數比率 | F4: 金額 (億元) | G4: 金額比率 | H4: 件數 | I4: 件數比率 | J4: 金額 (億元) | K4: 金額比率 | L4: 件數 | M4: 件數比率 | N4: 金額 (億元) | O4: 金額比率
A5: 工程 | B5: 39,729 | C5: 6,319.82 | D5: 12,094 | E5: =D5/B5 -> 30.44% | F5: 1,486.45 | G5: =F5/C5 -> 23.52% | H5: 11,896 | I5: =H5/B5 -> 29.94% | J5: 995.32 | K5: =J5/C5 -> 15.75% | L5: 9,743 | M5: =L5/B5 -> 24.52% | N5: 730.52 | O5: =N5/C5 -> 11.56%
A6: 財物 | B6: 65,410 | C6: 4,542.90 | D6: 19,613 | E6: =D6/B6 -> 29.98% | F6: 1,521.81 | G6: =F6/C6 -> 33.50% | H6: 18,752 | I6: =H6/B6 -> 28.67% | J6: 910.85 | K6: =J6/C6 -> 20.05% | L6: 13,680 | M6: =L6/B6 -> 20.91% | N6: 400.85 | O6: =N6/C6 -> 8.82%
A7: 勞務 | B7: 60,772 | C7: 3,092.24 | D7: 17,643 | E7: =D7/B7 -> 29.03% | F7: 645.41 | G7: =F7/C7 -> 20.87% | H7: 16,614 | I7: =H7/B7 -> 27.34% | J7: 561.55 | K7: =J7/C7 -> 18.16% | L7: 13,126 | M7: =L7/B7 -> 21.60% | N7: 375.50 | O7: =N7/C7 -> 12.14%
A8: 合計 | B8: =SUM(B5:B7) -> 165,911 | C8: =SUM(C5:C7) -> 13,954.96 | D8: =SUM(D5:D7) -> 49,350 | E8: =D8/B8 -> 29.74% | F8: =SUM(F5:F7) -> 3,653.66 | G8: =F8/C8 -> 26.18% | H8: =SUM(H5:H7) -> 47,262 | I8: =H8/B8 -> 28.49% | J8: =SUM(J5:J7) -> 2,467.72 | K8: =J8/C8 -> 17.68% | L8: =SUM(L5:L7) -> 36,549 | M8: =L8/B8 -> 22.03% | N8: =SUM(N5:N7) -> 1,506.87 | O8: =N8/C8 -> 10.80%
A9: 資料來源：企劃處
A10: 備註： 1.性別資料使用： (1)本統計所稱「女性企業」，指依商業登記法及公司法登記之企業，其法定代表人為女性之得標廠商。 (2)本統計所稱「女性中小企業」，指依商業登記法及公司法登記之企業，其指法定代表人為女性且決標公告之『是否為中小企業』選取『是』之得標廠商。 (3)本統計所稱「符合一定條件之女性中小企業」 原名稱為「優先取得採購業務機會之女性中小企業」，依工程會104年l0月27日「104年推動性別平等業務輔導考核實地考核綜合座談會」討論情形，因現行法令上並未對該類女性中小企業採取優惠或保護措施，爰研議修正該用詞，並經工程會104年12月14日簽奉核定修正用詞。 (4)「符合一定條件之女性中小企業」篩選條件，依經濟部中小企業處102年3月22日「研議辦理女性企業參與政府採購性別統計事宜」會議結論，指中小企業之法定代表人為女性，且該企業符合下列要件之一：一、女性持有股權或出資額須達二分之一以上。二、依法登記之負責人及關係人二分之一以上為女性。上述兩項篩選條件排除股份有限公司依法登記之法人及其持有股權(即法人股東無性別，不納入計算)。 (5)有關決標件數及決標金額，係依商業登記法及公司法登記之企業得標者。 2.應用深化： (1)統計期間，統計期間，女性企業得標家數計11,751家(A)，女性中小企業得標家數計11,546(B)，B/A之比率為98.26%，顯示女性企業大多以中小企業為主；又與109年度相較，女性企業減少280家，下降2.33%；女性中小企業家數減少245家，下降2.08%。符合一定條件之女性中小企業家數計9,273家(C)，C/A之比率為78.91%，與109年相較，減少371家，下降3.85%。 (2)就公司登記及商業登記之企業，其得標之全部件數165,911件，全部決標金額約13,954.96億元，其中，女性企業得標件數49,350件(約占全部件數之29.74%)，得標金額約3,653.66億元(約占全部決標金額之26.18%)；女性中小企業得標件數47,262件(約占全部總件數28.49%)，得標金額2,467.72億元(約占全部決標總金額17.68%)；符合一定條件之女性中小企業之得標件數36,549件(占總決標件數之22.03%)；得標金額約1,506.87億元(占總決標金額之10.8%)。 (3)各類女性企業承包政府採購之件數及金額之變動情形：女性企業、女性中小企業及符合一定條件之女性中小企業承包件數比率，110年較109年分別減少3.63%、3.35%及3.75%；在承包金額方面，女性企業、女性中小企業及符合一定條件之女性中小企業承包金額比率，110年較109年則分別上升1.22%、下降12.37%及19.5%，女性企業、女性中小企業及符合一定條件之女性中小企業家數及承包件數下降，但女性企業承包金額反而上升，似承攬規模擴大且集中於較大型企業。 3.未進行國際性別統計比較原因說明：各國對於女性企業、女性中小企業等之定義可能不同，且尚難取得資料，爰無法與國際進行性別統計比較。

Sheet 109年
A1: 109年1月1日至12月31日由女性企業承包決標案件統計表
A3: 採購性質 | B3: 全部決標 件數 | C3: 全部決標 金額 (億元) | D3: 女性企業 | H3: 女性中小企業 | L3: 符合一定條件之女性中小企業
D4: 件數 | E4: 件數比率 | F4: 金額 (億元) | G4: 金額比率 | H4: 件數 | I4: 件數比率 | J4: 金額 (億元) | K4: 金額比率 | L4: 件數 | M4: 件數比率 | N4: 金額 (億元) | O4: 金額比率
A5: 工程 | B5: 43,636 | C5: 6,379.81 | D5: 13,112 | E5: =D5/B5 -> 30.05% | F5: 1,503.94 | G5: =F5/C5 -> 23.57% | H5: 12,867 | I5: =H5/B5 -> 29.49% | J5: 1,219.59 | K5: =J5/C5 -> 19.12% | L5: 10,683 | M5: =L5/B5 -> 24.48% | N5: 837.77 | O5: =N5/C5 -> 13.13%
A6: 財物 | B6: 67,672 | C6: 5,487.95 | D6: 20,406 | E6: =D6/B6 -> 30.15% | F6: 1,432.64 | G6: =F6/C6 -> 26.11% | H6: 19,439 | I6: =H6/B6 -> 28.73% | J6: 1,029.38 | K6: =J6/C6 -> 18.76% | L6: 14,102 | M6: =L6/B6 -> 20.84% | N6: 648.96 | O6: =N6/C6 -> 11.83%
A7: 勞務 | B7: 62,074 | C7: 2,744.65 | D7: 17,692 | E7: =D7/B7 -> 28.50% | F7: 672.99 | G7: =F7/C7 -> 24.52% | H7: 16,593 | I7: =H7/B7 -> 26.73% | J7: 567.10 | K7: =J7/C7 -> 20.66% | L7: 13,189 | M7: =L7/B7 -> 21.25% | N7: 385.06 | O7: =N7/C7 -> 14.03%
A8: 合計 | B8: =SUM(B5:B7) -> 173,382 | C8: =SUM(C5:C7) -> 14,612.41 | D8: =SUM(D5:D7) -> 51,210 | E8: =D8/B8 -> 29.54% | F8: =SUM(F5:F7) -> 3,609.57 | G8: =F8/C8 -> 24.70% | H8: =SUM(H5:H7) -> 48,899 | I8: =H8/B8 -> 28.20% | J8: =SUM(J5:J7) -> 2,816.07 | K8: =J8/C8 -> 19.27% | L8: =SUM(L5:L7) -> 37,974 | M8: =L8/B8 -> 21.90% | N8: =SUM(N5:N7) -> 1,871.78 | O8: =N8/C8 -> 12.81%
A9: 資料來源：企劃處
A10: 備註： 1.性別資料使用： (1)本統計所稱「女性企業」，指依商業登記法及公司法登記之企業，其法定代表人為女性之得標廠商。 (2)本統計所稱「女性中小企業」，指依商業登記法及公司法登記之企業，其指法定代表人為女性且決標公告之『是否為中小企業』選取『是』之得標廠商。 (3)本統計所稱「符合一定條件之女性中小企業」 原名稱為「優先取得採購業務機會之女性中小企業」，依工程會104年l0月27日「104年推動性別平等業務輔導考核實地考核綜合座談會」討論情形，因現行法令上並未對該類女性中小企業採取優惠或保護措施，爰研議修正該用詞，並經工程會104年12月14日簽奉核定修正用詞。 (4)「符合一定條件之女性中小企業」篩選條件，依經濟部中小企業處102年3月22日「研議辦理女性企業參與政府採購性別統計事宜」會議結論，指中小企業之法定代表人為女性，且該企業符合下列要件之一：一、女性持有股權或出資額須達二分之一以上。二、依法登記之負責人及關係人二分之一以上為女性。上述兩項篩選條件排除股份有限公司依法登記之法人及其持有股權(即法人股東無性別，不納入計算)。 (5)有關決標件數及決標金額，係依商業登記法及公司法登記之企業得標者。 2.應用深化： (1)統計期間，女性企業得標家數計12,031家(A)，女性中小企業得標家數計11,791(B)，B/A之比率為98.00%，顯示女性企業大多以中小企業為主；又與108年度相較，女性企業成長380家，成長率3.26%；女性中小企業家數成長383家，成長率3.36%。符合一定條件之女性中小企業家數計9,644家(C)，C/A之比率為80.16%，與108年相較，增加383家，增加率4.14%。 (2)就公司登記及商業登記之企業，其得標之全部件數173,382件，全部決標金額約14,612.41億元，其中，女性企業得標件數51,210件(約占全部件數之29.54%)，得標金額約3,609.57億元(約占全部決標金額之24.7%)；女性中小企業得標件數48,899件(約占全部總件數28.20%)，得標金額2,816.07億元(約占全部決標總金額19.27%)；符合一定條件之女性中小企業之得標件數37,974件(占總決標件數之21.90%)；得標金額約1,871.78億元(占總決標金額之12.81%)。 (3)各類女性企業承包政府採購之件數及金額之變動情形：女性企業、女性中小企業及符合一定條件之女性中小企業承包件數比率，109年較108年分別成長2.58%、2.41%及1.55%；在承包金額方面，女性企業、女性中小企業及符合一定條件之女性中小企業承包金額比率，109年較108年則分別下降23.27%、26.01%及28.01%，顯示女性企業、女性中小企業及符合一定條件之女性中小企業承包件數件數提升，而承包金額反而下降，似平均承攬案件規模縮小。 3.未進行國際性別統計比較原因說明：各國對於女性企業、女性中小企業等之定義可能不同，且尚難取得資料，爰無法與國際進行性別統計比較。

Sheet 108年
A1: 108年女性企業取得政府採購案件統計表
A2: 採購性質 | B2: 全部決標 件數 | C2: 全部決標 金額 (億元) | D2: 女性企業 | H2: 女性中小企業 | L2: 符合一定條件之女性中小企業
D3: 件數 | E3: 件數比率 | F3: 金額 (億元) | G3: 金額比率 | H3: 件數 | I3: 件數比率 | J3: 金額 (億元) | K3: 金額比率 | L3: 件數 | M3: 件數比率 | N3: 金額 (億元) | O3: 金額比率
A4: 工程 | B4: 41,432 | C4: 5,274.17 | D4: 12,312 | E4: =D4/B4 -> 29.72% | F4: 1,826.31 | G4: =F4/C4 -> 34.63% | H4: 12,124 | I4: =H4/B4 -> 29.26% | J4: 1,290.39 | K4: =J4/C4 -> 24.47% | L4: 10,082 | M4: =L4/B4 -> 24.33% | N4: 654.28 | O4: =N4/C4 -> 12.41%
A5: 財物 | B5: 65,710 | C5: 3,734.03 | D5: 20,294 | E5: =D5/B5 -> 30.88% | F5: 2,207.14 | G5: =F5/C5 -> 59.11% | H5: 19,420 | I5: =H5/B5 -> 29.55% | J5: 1,976.97 | K5: =J5/C5 -> 52.94% | L5: 14,267 | M5: =L5/B5 -> 21.71% | N5: 1,567.96 | O5: =N5/C5 -> 41.99%
A6: 勞務 | B6: 58,420 | C6: 2,260.60 | D6: 17,317 | E6: =D6/B6 -> 29.64% | F6: 671.08 | G6: =F6/C6 -> 29.69% | H6: 16,206 | I6: =H6/B6 -> 27.74% | J6: 538.64 | K6: =J6/C6 -> 23.83% | L6: 13,045 | M6: =L6/B6 -> 22.33% | N6: 377.98 | O6: =N6/C6 -> 16.72%
A7: 合計 | B7: =SUM(B4:B6) -> 165,562 | C7: =SUM(C4:C6) -> 11,268.80 | D7: =SUM(D4:D6) -> 49,923 | E7: =D7/B7 -> 30.15% | F7: =SUM(F4:F6) -> 4,704.52 | G7: =F7/C7 -> 41.75% | H7: =SUM(H4:H6) -> 47,750 | I7: =H7/B7 -> 28.84% | J7: =SUM(J4:J6) -> 3,806.00 | K7: =J7/C7 -> 33.77% | L7: =SUM(L4:L6) -> 37,394 | M7: =L7/B7 -> 22.59% | N7: =SUM(N4:N6) -> 2,600.22 | O7: =N7/C7 -> 23.07%
A8: 資料來源：企劃處
A9: 備註： 1.性別資料使用： (1)本統計所稱「女性企業」，指依商業登記法及公司法登記之企業，其法定代表人為女性之得標廠商。 (2)本統計所稱「女性中小企業」，指依商業登記法及公司法登記之企業，其指法定代表人為女性且決標公告之『是否為中小企業』選取『是』之得標廠商。 (3)本統計所稱「符合一定條件之女性中小企業」 原名稱為「優先取得採購業務機會之女性中小企業」，依工程會104年l0月27日「104年推動性別平等業務輔導考核實地考核綜合座談會」討論情形，因現行法令上並未對該類女性中小企業採取優惠或保護措施，爰研議修正該用詞，並經工程會104年12月14日簽奉核定修正用詞。 (4)「符合一定條件之女性中小企業」篩選條件，依經濟部中小企業處102年3月22日「研議辦理女性企業參與政府採購性別統計事宜」會議結論，指中小企業之法定代表人為女性，且該企業符合下列要件之一：一、女性持有股權或出資額須達二分之一以上。二、依法登記之負責人及關係人二分之一以上為女性。上述兩項篩選條件排除股份有限公司依法登記之法人及其持有股權(即法人股東無性別，不納入計算)。 (5)有關決標件數及決標金額，係依商業登記法及公司法登記之企業得標者。 2.應用深化： (1)統計期間，女性企業得標家數計11,651家(A)，女性中小企業得標家數計11,408(B)，B/A之比率為97.91%，顯示女性企業大多以中小企業為主；又與107年度相較，女性企業成長614家，成長率5.56%；女性中小企業家數成長563家，成長率5.19%。符合一定條件之女性中小企業家數計9,261家(C)，C/A之比率為79.49%，與107年相較，增加421家，增加率4.76%。 (2)就公司登記及商業登記之企業，其得標之全部件數165,562件，全部決標金額約11,268.80億元，其中，女性企業得標件數49,923件(約占全部件數之30.15%)，得標金額約4,704.52億元(約占全部決標金額之41.75%)；女性中小企業得標件數47,750件(約占全部總件數28.84%)，得標金額3,806億元(約占全部決標總金額33.77%)；符合一定條件之女性中小企業之得標件數37,394件(占總決標件數之22.59%)；得標金額約2,600.22億元(占總決標金額之23.07%)。 (3)各類女性企業承包政府採購之件數及金額之變動情形：女性企業、女性中小企業及符合一定條件之女性中小企業承包件數比率，108年較107年分別成長0.29%、0.16%及0.09%；在承包金額方面，女性企業、女性中小企業及符合一定條件之女性中小企業承包金額比率，108年較107年分別成長15.66%、14.04%及9.59%，顯示女性企業、女性中小企業及符合一定條件之女性中小企業承包件數及承包金額均明顯提升，商業規模有逐步擴大趨勢。 3.未進行國際性別統計比較原因說明：各國對於女性企業、女性中小企業等之定義可能不同，且尚難取得資料，爰無法與國際進行性別統計比較。

Sheet 107年
A1: 107年女性企業取得政府採購案件統計表
A2: 採購性質 | B2: 全部決標 件數 | C2: 全部決標 金額 (億元) | D2: 女性企業 | H2: 女性中小企業 | L2: 符合一定條件之女性中小企業
D3: 件數 | E3: 件數比率 | F3: 金額 (億元) | G3: 金額比率 | H3: 件數 | I3: 件數比率 | J3: 金額 (億元) | K3: 金額比率 | L3: 件數 | M3: 件數比率 | N3: 金額 (億元) | O3: 金額比率
A4: 工程 | B4: 41,519 | C4: 5,523.49 | D4: 12,165 | E4: =D4/B4 -> 29.30% | F4: 1,217.03 | G4: =F4/C4 -> 22.03% | H4: 11,987 | I4: =H4/B4 -> 28.87% | J4: 950.18 | K4: =J4/C4 -> 17.20% | L4: 9,934 | M4: =L4/B4 -> 23.93% | N4: 639.08 | O4: =N4/C4 -> 11.57%
A5: 財物 | B5: 60,039 | C5: 3,732.73 | D5: 18,545 | E5: =D5/B5 -> 30.89% | F5: 1,247.95 | G5: =F5/C5 -> 33.43% | H5: 17,854 | I5: =H5/B5 -> 29.74% | J5: 856.44 | K5: =J5/C5 -> 22.94% | L5: 13,216 | M5: =L5/B5 -> 22.01% | N5: 557.58 | O5: =N5/C5 -> 14.94%
A6: 勞務 | B6: 52,614 | C6: 2,277.65 | D6: 15,328 | E6: =D6/B6 -> 29.13% | F6: 544.23 | G6: =F6/C6 -> 23.89% | H6: 14,371 | I6: =H6/B6 -> 27.31% | J6: 468.82 | K6: =J6/C6 -> 20.58% | L6: 11,540 | M6: =L6/B6 -> 21.93% | N6: 357.65 | O6: =N6/C6 -> 15.70%
A7: 合計 | B7: =SUM(B4:B6) -> 154,172 | C7: =SUM(C4:C6) -> 11,533.87 | D7: =SUM(D4:D6) -> 46,038 | E7: =D7/B7 -> 29.86% | F7: =SUM(F4:F6) -> 3,009.22 | G7: =F7/C7 -> 26.09% | H7: =SUM(H4:H6) -> 44,212 | I7: =H7/B7 -> 28.68% | J7: =SUM(J4:J6) -> 2,275.44 | K7: =J7/C7 -> 19.73% | L7: =SUM(L4:L6) -> 34,690 | M7: =L7/B7 -> 22.50% | N7: =SUM(N4:N6) -> 1,554.31 | O7: =N7/C7 -> 13.48%
A8: 資料來源：企劃處
A9: 備註： 1.性別資料使用： (1)本統計所稱「女性企業」，指依商業登記法及公司法登記之企業，其法定代表人為女性之得標廠商。 (2)本統計所稱「女性中小企業」，指依商業登記法及公司法登記之企業，其指法定代表人為女性且決標公告之『是否為中小企業』選取『是』之得標廠商。 (3)本統計所稱「符合一定條件之女性中小企業」 原名稱為「優先取得採購業務機會之女性中小企業」，依工程會104年l0月27日「104年推動性別平等業務輔導考核實地考核綜合座談會」討論情形，因現行法令上並未對該類女性中小企業採取優惠或保護措施，爰研議修正該用詞，並經工程會104年12月14日簽奉核定修正用詞。 (4)「符合一定條件之女性中小企業」篩選條件，依經濟部中小企業處102年3月22日「研議辦理女性企業參與政府採購性別統計事宜」會議結論，指中小企業之法定代表人為女性，且該企業符合下列要件之一：一、女性持有股權或出資額須達二分之一以上。二、依法登記之負責人及關係人二分之一以上為女性。上述兩項篩選條件排除股份有限公司依法登記之法人及其持有股權(即法人股東無性別，不納入計算)。 (5)有關決標件數及決標金額，係依商業登記法及公司法登記之企業得標者。 2.應用深化： (1)統計期間，女性企業得標家數計11,037家(A)，女性中小企業得標家數計10,845(B)，B/A之比率為98.26%，顯示女性企業大多以中小企業為主；又與106年度相較，女性企業成長1,903家，成長率20.83%；女性中小企業家數成長1,804家，成長率19.95%。符合一定條件之女性中小企業家數計8,840家(C)，C/A之比率為80.09%，與106年相較，增加1,196家，增家率15.65%。 (2)就公司登記及商業登記之企業，其得標之全部件數154,172件，全部決標金額約11,533.87億元，其中，女性企業得標件數46,038件(約占全部件數之29.86%)，得標金額約3,009.22億元(約占全部決標金額之26.09%)；女性中小企業得標件數44,212件(約占全部總件數28.68%)，得標金額2,275.44億元(約占全部決標總金額19.73%)；符合一定條件之女性中小企業之得標件數34,690件(占總決標件數之22.50%)；得標金額約1,554.31億元(占總決標金額之13.48%)。 (3)各類女性企業承包政府採購之件數及金額之變動情形：女性企業及女性中小企業承包件數比率，107年較106年分別成長1.54%、0.91%；惟在承包金額方面，女性企業及女性中小企業承包金額比率，107年較106年分別減少5.98%及9.49%，顯示女性企業及女性中小企業商業規模可能較小，爰承包件數雖增加，但承包金額卻降低。又「符合一定條件之女性中小企業」承包件數比率，107年較106年減少0.29%；在承包金額方面，107年較106年減少3.9%，變化幅度較小。 3.未進行國際性別統計比較原因說明：各國對於女性企業、女性中小企業等之定義可能不同，且尚難取得資料，爰無法與國際進行性別統計比較。

Sheet 106年
A1: 106年女性企業取得政府採購案件統計表
A2: 採購性質 | B2: 全部決標 件數 | C2: 全部決標 金額 (億元) | D2: 女性企業 | H2: 女性中小企業 | L2: 符合一定條件之女性中小企業
D3: 件數 | E3: 件數比率 | F3: 金額 (億元) | G3: 金額比率 | H3: 件數 | I3: 件數比率 | J3: 金額 (億元) | K3: 金額比率 | L3: 件數 | M3: 件數比率 | N3: 金額 (億元) | O3: 金額比率
A4: 工程 | B4: 41,656 | C4: 4,350.46 | D4: 12,282 | E4: =D4/B4 -> 29.48% | F4: 1,027.88 | G4: =F4/C4 -> 23.63% | H4: 12,169 | I4: =H4/B4 -> 29.21% | J4: 935.97 | K4: =J4/C4 -> 21.51% | L4: 10,075 | M4: =L4/B4 -> 24.19% | N4: 583.70 | O4: =N4/C4 -> 13.42%
A5: 財物 | B5: 60,171 | C5: 3,477.13 | D5: 16,966 | E5: =D5/B5 -> 28.20% | F5: 1,668.50 | G5: =F5/C5 -> 47.98% | H5: 16,749 | I5: =H5/B5 -> 27.84% | J5: 1,535.33 | K5: =J5/C5 -> 44.15% | L5: 13,294 | M5: =L5/B5 -> 22.09% | N5: 813.62 | O5: =N5/C5 -> 23.40%
A6: 勞務 | B6: 54,896 | C6: 2,139.08 | D6: 15,139 | E6: =D6/B6 -> 27.58% | F6: 499.74 | G6: =F6/C6 -> 23.36% | H6: 14,604 | I6: =H6/B6 -> 26.60% | J6: 441.30 | K6: =J6/C6 -> 20.63% | L6: 12,345 | M6: =L6/B6 -> 22.49% | N6: 334.63 | O6: =N6/C6 -> 15.64%
A7: 合計 | B7: =SUM(B4:B6) -> 156,723 | C7: =SUM(C4:C6) -> 9,966.67 | D7: =SUM(D4:D6) -> 44,387 | E7: =D7/B7 -> 28.32% | F7: =SUM(F4:F6) -> 3,196.12 | G7: =F7/C7 -> 32.07% | H7: =SUM(H4:H6) -> 43,522 | I7: =H7/B7 -> 27.77% | J7: =SUM(J4:J6) -> 2,912.60 | K7: =J7/C7 -> 29.22% | L7: =SUM(L4:L6) -> 35,714 | M7: =L7/B7 -> 22.79% | N7: =SUM(N4:N6) -> 1,731.96 | O7: =N7/C7 -> 17.38%
A8: 資料來源：企劃處
A9: 備註： 1.性別資料使用： (1)本統計所稱「女性企業」，指依商業登記法及公司法登記之企業，其法定代表人為女性之得標廠商。 (2)本統計所稱「女性中小企業」，指依商業登記法及公司法登記之企業，其指法定代表人為女性且決標公告之『是否為中小企業』選取『是』之得標廠商。 (3)本統計所稱「符合一定條件之女性中小企業」 原名稱為「優先取得採購業務機會之女性中小企業」，依工程會104年l0月27日「104年推動性別平等業務輔導考核實地考核綜合座談會」討論情形，因現行法令上並未對該類女性中小企業採取優惠或保護措施，爰研議修正該用詞，並經工程會104年12月14日簽奉核定修正用詞。 (4)「符合一定條件之女性中小企業」篩選條件，依經濟部中小企業處102年3月22日「研議辦理女性企業參與政府採購性別統計事宜」會議結論，指中小企業之法定代表人為女性，且該企業符合下列要件之一：一、女性持有股權或出資額須達二分之一以上。二、依法登記之負責人及關係人二分之一以上為女性。上述兩項篩選條件排除股份有限公司依法登記之法人及其持有股權(即法人股東無性別，不納入計算)。 (5) 有關決標件數及決標金額，係依商業登記法及公司法登記之企業得標者。 2.應用深化：統計期間，女性企業得標家數計9,134家(A)，女性中小企業得標家數計9,041(B)，B/A之比率為98.98%；符合一定條件之女性中小企業家數計7,644家(C)，C/A之比率為83.68%。就公司登記及商業登記之企業，其得標之全部件數156,723件，全部決標金額約9,966.67億元，其中： (1)女性企業得標件數44,387件(約占全部件數之28.32%)，得標金額約3,196.12億元(約占全部決標金額之32.07%)。 (2)女性中小企業得標件數43,522件(約占全部總件數27.77%)，得標金額2,912.6億元(約占全部決標總金額29.22%)。 (3)「符合一定條件之女性中小企業」得標件數35,714件(占總決標件數之22.79%)；得標金額約1,731.96億元(占總決標金額之17.38%)。 3.未進行國際性別統計比較原因說明：各國對於女性企業、女性中小企業等之定義可能不同，且尚難取得資料，爰無法與國際進行性別統計比較。

Sheet 105年
A1: 105年女性企業取得政府採購案件統計表
A2: 採購性質 | B2: 全部決標 件數 | C2: 全部決標 金額 (億元) | D2: 女性企業1 | H2: 女性中小企業2 | L2: 符合一定條件之女性中小企業3
D3: 件數 | E3: 件數比率 | F3: 金額 (億元) | G3: 金額比率 | H3: 件數 | I3: 件數比率 | J3: 金額 (億元) | K3: 金額比率 | L3: 件數 | M3: 件數比率 | N3: 金額 (億元) | O3: 金額比率
A4: 工程 | B4: 40,057 | C4: 3,792.29 | D4: 11,677 | E4: =D4/B4 -> 29.15% | F4: 870.18 | G4: =F4/C4 -> 22.95% | H4: 11,608 | I4: =H4/B4 -> 28.98% | J4: 746.24 | K4: =J4/C4 -> 19.68% | L4: 9,584 | M4: =L4/B4 -> 23.93% | N4: 483.08 | O4: =N4/C4 -> 12.74%
A5: 財物 | B5: 58,125 | C5: 2,979.23 | D5: 16,410 | E5: =D5/B5 -> 28.23% | F5: 793.84 | G5: =F5/C5 -> 26.65% | H5: 16,257 | I5: =H5/B5 -> 27.97% | J5: 779.08 | K5: =J5/C5 -> 26.15% | L5: 12,921 | M5: =L5/B5 -> 22.23% | N5: 489.92 | O5: =N5/C5 -> 16.44%
A6: 勞務 | B6: 50,639 | C6: 1,828.63 | D6: 14,270 | E6: =D6/B6 -> 28.18% | F6: 475.80 | G6: =F6/C6 -> 26.02% | H6: 13,968 | I6: =H6/B6 -> 27.58% | J6: 447.11 | K6: =J6/C6 -> 24.45% | L6: 11,770 | M6: =L6/B6 -> 23.24% | N6: 353.40 | O6: =N6/C6 -> 19.33%
A7: 合計 | B7: =SUM(B4:B6) -> 148,821 | C7: =SUM(C4:C6) -> 8,600.15 | D7: =SUM(D4:D6) -> 42,357 | E7: =D7/B7 -> 28.46% | F7: =SUM(F4:F6) -> 2,139.83 | G7: =F7/C7 -> 24.88% | H7: =SUM(H4:H6) -> 41,833 | I7: =H7/B7 -> 28.11% | J7: =SUM(J4:J6) -> 1,972.43 | K7: =J7/C7 -> 22.93% | L7: =SUM(L4:L6) -> 34,275 | M7: =L7/B7 -> 23.03% | N7: =SUM(N4:N6) -> 1,326.40 | O7: =N7/C7 -> 15.42%
A8: 資料來源：企劃處
A9: 註1：本統計所稱「女性企業」，指依商業登記法及公司法登記之企業，其法定代表人為女性之得標廠商。 註2：本統計所稱「女性中小企業」，指依商業登記法及公司法登記之企業，其指法定代表人為女性且決標公告之『是否為中小企業』選取『是』之得標廠商。 註3：「符合一定條件之女性中小企業」原名稱為「優先取得採購業務機會之女性中小企業」，依工程會104年l0月27日「104年推動性別平等業務輔導考核實地考核綜合座談會」討論情形，因現行法令上並未對該類女性中小企業採取優惠或保護措施，爰研議修正該用詞，並經工程會104年12月14日簽奉核定修正用詞。 註4：「符合一定條件之女性中小企業」篩選條件，依經濟部中小企業處102年3月22日「研議辦理女性企業參與政府採購性別統計事宜」會議結論，指中小企業之法定代表人為女性，且該企業符合下列要件之一：一、女性持有股權或出資額須達二分之一以上。二、依法登記之負責人及關係人二分之一以上為女性。上述兩項篩選條件排除股份有限公司依法登記之法人及其持有股權(即法人股東無性別，不納入計算)。 註5：統計期間，女性企業得標家數計10,251家(A)，女性中小企業得標家數計10,175(B)，B/A之比率為99.25%；符合一定條件之女性中小企業家數計8,425家(C)，C/A之比率為82.18%。 註6：有關決標件數及決標金額，係依商業登記法及公司法登記之企業得標者。

Sheet 104年
A1: 104年女性企業取得政府採購案件統計表
A2: 採購性質 | B2: 全部決標 件數 | C2: 全部決標 金額 (億元) | D2: 女性企業1 | H2: 女性中小企業2 | L2: 符合一定條件之女性中小企業3
D3: 件數 | E3: 件數比率 | F3: 金額 (億元) | G3: 金額比率 | H3: 件數 | I3: 件數比率 | J3: 金額 (億元) | K3: 金額比率 | L3: 件數 | M3: 件數比率 | N3: 金額 (億元) | O3: 金額比率
A4: 工程 | B4: 39,224 | C4: 3,002.30 | D4: 11,370 | E4: =D4/B4 -> 28.99% | F4: 711.69 | G4: =F4/C4 -> 23.70% | H4: 11,259 | I4: =H4/B4 -> 28.70% | J4: 654.14 | K4: =J4/C4 -> 21.79% | L4: 9,245 | M4: =L4/B4 -> 23.57% | N4: 433.07 | O4: =N4/C4 -> 14.42%
A5: 財物 | B5: 56,693 | C5: 2,259.43 | D5: 16,176 | E5: =D5/B5 -> 28.53% | F5: 972.67 | G5: =F5/C5 -> 43.05% | H5: 15,964 | I5: =H5/B5 -> 28.16% | J5: 958.70 | K5: =J5/C5 -> 42.43% | L5: 12,618 | M5: =L5/B5 -> 22.26% | N5: 542.10 | O5: =N5/C5 -> 23.99%
A6: 勞務 | B6: 47,727 | C6: 1,935.84 | D6: 13,651 | E6: =D6/B6 -> 28.60% | F6: 511.83 | G6: =F6/C6 -> 26.44% | H6: 13,348 | I6: =H6/B6 -> 27.97% | J6: 489.19 | K6: =J6/C6 -> 25.27% | L6: 11,204 | M6: =L6/B6 -> 23.48% | N6: 341.70 | O6: =N6/C6 -> 17.65%
A7: 合計 | B7: =SUM(B4:B6) -> 143,644 | C7: =SUM(C4:C6) -> 7,197.57 | D7: =SUM(D4:D6) -> 41,197 | E7: =D7/B7 -> 28.68% | F7: =SUM(F4:F6) -> 2,196.20 | G7: =F7/C7 -> 30.51% | H7: =SUM(H4:H6) -> 40,571 | I7: =H7/B7 -> 28.24% | J7: =SUM(J4:J6) -> 2,102.03 | K7: =J7/C7 -> 29.20% | L7: =SUM(L4:L6) -> 33,067 | M7: =L7/B7 -> 23.02% | N7: =SUM(N4:N6) -> 1,316.86 | O7: =N7/C7 -> 18.30%
A8: 資料來源：企劃處
A9: 註1：本統計所稱「女性企業」，指依商業登記法及公司法登記之企業，其法定代表人為女性之得標廠商。 註2：本統計所稱「女性中小企業」，指依商業登記法及公司法登記之企業，其指法定代表人為女性且決標公告之『是否為中小企業』選取『是』之得標廠商。 註3：「符合一定條件之女性中小企業」 原名稱為「優先取得採購業務機會之女性中小企業」，依工程會104年l0月27日「104年推動性別平等業務輔導考核實地考核綜合座談會」討論情形，因現行法令上並未對該類女性中小企業採取優惠或保護措施，爰研議修正該用詞，並經工程會104年12月14日簽奉核定修正用詞。 註4：「符合一定條件之女性中小企業」篩選條件，依經濟部中小企業處102年3月22日「研議辦理女性企業參與政府採購性別統計事宜」會議結論，指中小企業之法定代表人為女性，且該企業符合下列要件之一：一、女性持有股權或出資額須達二分之一以上。二、依法登記之負責人及關係人二分之一以上為女性。上述兩項篩選條件排除股份有限公司依法登記之法人及其持有股權(即法人股東無性別，不納入計算)。 註5：統計期間，女性企業得標家數計10,173家(A)，女性中小企業得標家數計10,100家(B)，B/A之比率為99.28%；符合一定條件之女性中小企業家數計8,313家(C)，C/A之比率為81.71%。 註6：有關決標件數及決標金額，係依商業登記法及公司法登記之企業得標者。

Sheet 103年
A1: 103年女性企業取得政府採購案件統計表
A2: 採購性質 | B2: 全部決標 件數 | C2: 全部決標 金額 (億元) | D2: 女性企業1 | H2: 女性中小企業2 | L2: 優先取得採購業務機會之女性中小企業3
D3: 件數 | E3: 件數比率 | F3: 金額 (億元) | G3: 金額比率 | H3: 件數 | I3: 件數比率 | J3: 金額 (億元) | K3: 金額比率 | L3: 件數 | M3: 件數比率 | N3: 金額 (億元) | O3: 金額比率
A4: 工程 | B4: 44,802 | C4: 3,379.93 | D4: 13,175 | E4: =D4/B4 -> 29.41% | F4: 826.84 | G4: =F4/C4 -> 24.46% | H4: 13,024 | I4: =H4/B4 -> 29.07% | J4: 746.86 | K4: =J4/C4 -> 22.10% | L4: 10,494 | M4: =L4/B4 -> 23.42% | N4: 485.75 | O4: =N4/C4 -> 14.37%
A5: 財物 | B5: 58,963 | C5: 3,231.62 | D5: 16,811 | E5: =D5/B5 -> 28.51% | F5: 557.91 | G5: =F5/C5 -> 17.26% | H5: 16,603 | I5: =H5/B5 -> 28.16% | J5: 543.72 | K5: =J5/C5 -> 16.83% | L5: 13,068 | M5: =L5/B5 -> 22.16% | N5: 360.71 | O5: =N5/C5 -> 11.16%
A6: 勞務 | B6: 47,349 | C6: 1,800.50 | D6: 13,454 | E6: =D6/B6 -> 28.41% | F6: 503.10 | G6: =F6/C6 -> 27.94% | H6: 13,164 | I6: =H6/B6 -> 27.80% | J6: 479.14 | K6: =J6/C6 -> 26.61% | L6: 10,987 | M6: =L6/B6 -> 23.20% | N6: 332.57 | O6: =N6/C6 -> 18.47%
A7: 合計 | B7: =SUM(B4:B6) -> 151,114 | C7: =SUM(C4:C6) -> 8,412.05 | D7: =SUM(D4:D6) -> 43,440 | E7: =D7/B7 -> 28.75% | F7: =SUM(F4:F6) -> 1,887.85 | G7: =F7/C7 -> 22.44% | H7: =SUM(H4:H6) -> 42,791 | I7: =H7/B7 -> 28.32% | J7: =SUM(J4:J6) -> 1,769.73 | K7: =J7/C7 -> 21.04% | L7: =SUM(L4:L6) -> 34,549 | M7: =L7/B7 -> 22.86% | N7: =SUM(N4:N6) -> 1,179.03 | O7: =N7/C7 -> 14.02%
A8: 資料來源：企劃處
A9: 註1：本統計所稱「女性企業」，指依商業登記法及公司法登記之企業，其法定代表人為女性之得標廠商。 註2：本統計所稱「女性中小企業」，指依商業登記法及公司法登記之企業，其指法定代表人為女性且決標公告之『是否為中小企業』選取『是』之得標廠商。 註3：「優先取得採購業務機會之女性中小企業」篩選條件，依經濟部中小企業處102年3月22日「研議辦理女性企業參與政府採購性別統計事宜」會議結論，係指：中小企業之法定代表人為女性，且該企業符合下列要件之一：一、女性持有股權或出資額須達二分之一以上。二、依法登記之負責人及關係人二分之一以上為女性。上述兩項篩選條件排除股份有限公司依法登記之法人及其持有股權(即法人股東無性別，不納入計算)。 註4：統計期間，女性企業得標家數計10,150家(A)，女性中小企業得標家數計10,067家(B)，B/A之比率為99.11%；優先取得採購業務機會之女性中小企業家數計8,281家(C)，C/A之比率為81.21%。 註5：有關決標件數及決標金額，係依商業登記法及公司法登記之企業得標者。

Sheet 102年(5月17日-12月31日)
A1: 102年5月17日至12月31日女性企業取得政府採購案件統計表
A2: 採購性質 | B2: 全部決標 件數 | C2: 全部決標 金額 (億元) | D2: 女性企業1 | H2: 女性中小企業2 | L2: 優先取得採購業務機會之女性中小企業3
D3: 件數 | E3: 件數比率 | F3: 金額 (億元) | G3: 金額比率 | H3: 件數 | I3: 件數比率 | J3: 金額 (億元) | K3: 金額比率 | L3: 件數 | M3: 件數比率 | N3: 金額 (億元) | O3: 金額比率
A4: 工程 | B4: 32,117 | C4: 2,748.61 | D4: 8,693 | E4: =D4/B4 -> 27.07% | F4: 471.89 | G4: =F4/C4 -> 17.17% | H4: 8,601 | I4: =H4/B4 -> 26.78% | J4: 420.64 | K4: =J4/C4 -> 15.30% | L4: 6,966 | M4: =L4/B4 -> 21.69% | N4: 286.28 | O4: =N4/C4 -> 10.42%
A5: 財物 | B5: 44,538 | C5: 4,519.62 | D5: 11,110 | E5: =D5/B5 -> 24.94% | F5: 541.71 | G5: =F5/C5 -> 11.99% | H5: 10,950 | I5: =H5/B5 -> 24.59% | J5: 520.28 | K5: =J5/C5 -> 11.51% | L5: 8,579 | M5: =L5/B5 -> 19.26% | N5: 317.89 | O5: =N5/C5 -> 7.03%
A6: 勞務 | B6: 44,908 | C6: 1,944.75 | D6: 8,655 | E6: =D6/B6 -> 19.27% | F6: 308.75 | G6: =F6/C6 -> 15.88% | H6: 8,447 | I6: =H6/B6 -> 18.81% | J6: 276.78 | K6: =J6/C6 -> 14.23% | L6: 6,906 | M6: =L6/B6 -> 15.38% | N6: 192.72 | O6: =N6/C6 -> 9.91%
A7: 合計 | B7: =SUM(B4:B6) -> 121,563 | C7: =SUM(C4:C6) -> 9,212.99 | D7: =SUM(D4:D6) -> 28,458 | E7: =D7/B7 -> 23.41% | F7: =SUM(F4:F6) -> 1,322.35 | G7: =F7/C7 -> 14.35% | H7: =SUM(H4:H6) -> 27,998 | I7: =H7/B7 -> 23.03% | J7: =SUM(J4:J6) -> 1,217.70 | K7: =J7/C7 -> 13.22% | L7: =SUM(L4:L6) -> 22,451 | M7: =L7/B7 -> 18.47% | N7: =SUM(N4:N6) -> 796.89 | O7: =N7/C7 -> 8.65%
A8: 資料來源：企劃處
A9: 註1：本統計所稱「女性企業」，指法定代表人為女性之得標廠商。 註2：本統計所稱「女性中小企業」，指法定代表人為女性且決標公告之『是否為中小企業』選取『是』之得標廠商。 註3：「優先取得採購業務機會之女性中小企業」篩選條件，依經濟部中小企業處102年3月22日「研議辦理女性企業參與政府採購性別統計事宜」會議結論，係指：中小企業之法定代表人為女性，且該企業符合下列要件之一：一、女性持有股權或出資額須達二分之一以上。二、依法登記之負責人及關係人二分之一以上為女性。上述兩項篩選條件排除股份有限公司依法登記之法人及其持有股權(即法人股東無性別，不納入計算)。 註4：統計期間，女性企業得標家數計8,424家(A)，女性中小企業得標家數計8,362家(B)，B/A之比率為99.26%；優先取得採購業務機會之女性中小企業家數計6,783家(C)，C/A之比率為80.51%。
